bitfinex/quotes_SOLUSD_20240625
["timestamp","ask_amount","ask_price","bid_price","bid_amount"]
[1719333117761,0.17,138.7,138.65,16.1174]
[1719333117963,27.2089,138.72,138.65,16.1174]
[1719333118177,0.17,138.71,138.65,16.1174]
[1719333121589,7.2102,138.7,138.65,16.1174]
[1719333121773,20.0,138.69,138.65,16.1174]
[1719333121974,20.17,138.69,138.65,16.1174]
[1719333122962,0.17,138.69,138.65,16.1174]
[1719333123469,20.0,138.7,138.65,16.1174]
[1719333123669,20.0,138.72,138.65,16.1174]
[1719333123986,0.17,138.71,138.65,16.1174]
[1719333124286,7.2088,138.72,138.65,16.1174]
[1719333124490,20.0,138.71,138.65,16.1174]
[1719333125186,20.0,138.73,138.65,16.1174]
[1719333125982,0.17,138.72,138.65,16.1174]
[1719333126872,20.0,138.73,138.65,16.1174]
[1719333127471,27.3778,138.74,138.65,16.1174]
[1719333127774,27.2078,138.74,138.65,16.1174]
[1719333128091,7.2088,138.72,138.65,16.1174]
[1719333128271,20.0,138.71,138.65,16.1174]
[1719333128587,0.17,138.71,138.65,16.1174]
[1719333128969,20.0,138.72,138.65,16.1174]
[1719333129170,0.17,138.73,138.65,16.1174]
[1719333129389,7.3783,138.73,138.65,16.1174]
[1719333129589,20.0,138.72,138.65,16.1174]
[1719333130485,20.0,138.73,138.65,16.1174]
[1719333130686,27.2082,138.74,138.65,16.1174]
[1719333130874,20.0,138.74,138.65,16.1174]
[1719333131494,27.2077,138.74,138.65,16.1174]
[1719333131697,20.0,138.74,138.65,16.1174]
[1719333132081,20.0,138.74,138.67,15.0682]
[1719333132598,27.2077,138.74,138.67,15.0682]
[1719333133077,20.0,138.74,138.67,15.0682]
[1719333134985,27.2078,138.74,138.67,15.0682]
[1719333136784,20.0,138.71,138.67,15.0682]
[1719333137011,27.3783,138.73,138.67,15.0682]
[1719333137501,20.17,138.73,138.67,15.0682]
[1719333137710,20.0,138.73,138.67,15.0682]
[1719333138005,27.2078,138.74,138.67,15.0682]
[1719333138207,7.2083,138.73,138.67,15.0682]
[1719333138398,20.0,138.72,138.67,15.0682]
[1719333138995,27.2077,138.74,138.67,15.0682]
[1719333139201,0.17,138.73,138.67,15.0682]
[1719333139405,20.0,138.74,138.67,15.0682]
[1719333143811,0.17,138.73,138.67,15.0682]
[1719333143984,7.2088,138.72,138.67,15.0682]
[1719333144188,20.0,138.71,138.67,15.0682]
[1719333144809,20.17,138.72,138.67,15.0682]
[1719333145010,20.0,138.72,138.67,15.0682]
[1719333149717,20.0,138.73,138.67,15.0682]
[1719333153643,20.0,138.73,138.69,16.0605]
[1719333153830,27.2064,138.77,138.69,16.0605]
[1719333154152,6.61566218,138.76,138.69,16.0605]
[1719333154353,20.0,138.75,138.69,16.0605]
[1719333157852,6.61566218,138.76,138.69,16.0605]
[1719333160855,7.87,138.73,138.69,16.0605]
[1719333161243,7.87,138.72,138.69,16.0605]
[1719333162349,7.87,138.73,138.69,16.0605]
[1719333162659,7.87,138.74,138.69,23.9305]
[1719333163545,7.87,138.73,138.69,16.0605]
[1719333164360,7.87,138.74,138.69,16.0605]
[1719333164733,0.17,138.75,138.69,16.0605]
[1719333164934,20.17,138.75,138.69,16.0605]
[1719333165846,34.89892062,138.75,138.69,16.0605]
[1719333166538,27.69152062,138.75,138.69,16.0605]
[1719333167745,34.89882062,138.75,138.69,16.0605]
[1719333168165,27.69152062,138.75,138.69,16.0605]
[1719333169061,34.89872062,138.75,138.69,16.0605]
[1719333169378,7.2081,138.74,138.69,16.0605]
[1719333169847,0.17,138.73,138.69,16.0605]
[1719333170051,7.3784,138.73,138.69,16.0605]
[1719333170465,0.17,138.73,138.69,16.0605]
[1719333170645,20.17,138.73,138.69,16.0605]
[1719333171463,27.3783,138.73,138.66,16.3624]
[1719333171658,20.17,138.73,138.66,16.3624]
[1719333171862,27.2088,138.72,138.66,16.3624]
[1719333172163,7.2088,138.72,138.66,16.3624]
[1719333172346,20.0,138.71,138.66,16.3624]
[1719333172952,0.17,138.7,138.66,16.3624]
[1719333173152,20.0,138.71,138.66,16.3624]
[1719333173153,20.0,138.72,138.66,16.3624]
[1719333173468,20.17,138.73,138.66,16.3624]
[1719333174045,27.3783,138.73,138.66,16.3624]
[1719333175268,20.17,138.73,138.66,16.3624]
[1719333175567,20.0,138.74,138.66,16.3624]
[1719333176363,7.53624092,138.73,138.66,16.3624]
[1719333180676,14.74464092,138.73,138.66,16.3624]
[1719333181164,7.53624092,138.73,138.66,16.3624]
[1719333181574,14.74444092,138.73,138.66,16.3624]
[1719333182071,27.3779,138.74,138.66,16.3624]
[1719333182278,20.0,138.74,138.66,16.3624]
[1719333182672,27.2078,138.74,138.66,16.3624]
[1719333183357,0.17,138.73,138.66,16.3624]
[1719333184357,0.17,138.73,138.67,0.93513512]
[1719333184569,7.3783,138.73,138.67,0.93513512]
[1719333184777,0.17,138.73,138.67,0.93513512]
[1719333184970,7.87,138.73,138.68,7.87]
[1719333185157,27.87,138.74,138.69,0.93512875]
[1719333185574,20.0,138.74,138.69,0.93512875]
[1719333185799,20.0,138.75,138.7,22.6938]
[1719333185958,6.61566218,138.76,138.72,7.87]
[1719333186280,15.0757,138.78,138.72,7.87]
[1719333186471,15.0761,138.77,138.71,8.80499391]
[1719333186983,7.87,138.77,138.71,8.80499391]
[1719333187979,7.2058,138.78,138.72,7.87]
[1719333188187,28.04,138.77,138.72,7.87]
[1719333188559,20.17,138.77,138.72,7.87]
[1719333188761,33.6532,138.84,138.74,7.87]
[1719333188960,7.87,138.81,138.76,7.87]
[1719333189155,20.0,138.8,138.76,7.87]
[1719333189993,27.87,138.81,138.76,7.87]
[1719333190177,35.0742,138.81,138.76,7.87]
[1719333190685,0.17,138.8,138.76,7.87]
[1719333191078,0.17,138.8,138.75,15.6257]
[1719333191277,0.17,138.8,138.75,23.4957]
[1719333191484,20.0,138.81,138.76,7.26342224]
[1719333191668,27.87,138.81,138.76,7.26197406]
[1719333191867,20.0,138.81,138.77,0.93329348]
[1719333192106,13.81836218,138.84,138.77,7.87]
[1719333192107,7.87,138.83,138.77,7.87]
[1719333192276,20.0,138.82,138.78,7.87]
[1719333192473,6.61566218,138.84,138.79,7.87]
[1719333192671,6.61566218,138.84,138.77,0.93322622]
[1719333192672,6.61566218,138.84,138.8,7.87]
[1719333192979,7.2013,138.87,138.79,0.93309173]
[1719333193307,20.0,138.86,138.81,7.87]
[1719333193613,20.0,138.86,138.82,7.87]
[1719333193903,21.68626218,138.88,138.83,15.7567]
[1719333194216,20.0,138.87,138.83,15.7567]
[1719333194713,20.0,138.87,138.83,16.69298872]
[1719333195001,20.0,138.87,138.83,15.7567]
[1719333196186,20.0,138.88,138.83,15.7567]
[1719333196392,20.17,138.89,138.83,15.7567]
[1719333196913,27.37,138.89,138.83,15.7567]
[1719333197116,7.2005,138.88,138.83,15.7567]
[1719333197302,20.0,138.87,138.83,15.7567]
[1719333197885,100.0,138.91,138.83,15.7567]
[1719333197886,7.2025,138.84,138.83,15.7567]
[1719333198089,7.2022,138.85,138.83,15.7567]
[1719333198306,18.0013,138.88,138.79,15.9188]
[1719333198506,7.2034,138.83,138.79,15.9188]
[1719333198706,20.0,138.84,138.75,15.9188]
[1719333198707,7.2054,138.79,138.75,15.9188]
[1719333198913,20.0,138.78,138.75,15.9188]
[1719333199192,7.2046,138.8,138.75,15.9188]
[1719333199404,20.17,138.79,138.75,15.9188]
[1719333199602,27.3751,138.79,138.75,15.9188]
[1719333199895,20.17,138.79,138.75,15.9188]
[1719333200421,27.3751,138.79,138.75,15.9188]
[1719333201202,20.17,138.79,138.75,15.9188]
[1719333201523,27.3752,138.79,138.75,15.9188]
[1719333202032,20.17,138.79,138.71,21.6516]
[1719333202195,45.0,138.78,138.71,21.6516]
[1719333202398,7.2071,138.76,138.71,21.6516]
[1719333202598,20.0,138.75,138.71,21.6516]
[1719333202800,20.17,138.77,138.71,21.6516]
[1719333203101,20.0,138.77,138.71,21.6516]
[1719333203302,23.57,138.82,138.71,21.6516]
[1719333203303,7.2046,138.8,138.71,21.6516]
[1719333203526,20.17,138.79,138.71,21.6516]
[1719333203738,27.3752,138.79,138.71,21.6516]
[1719333204928,20.17,138.79,138.71,21.6516]
[1719333205129,7.3751,138.79,138.71,21.6516]
[1719333205333,20.0,138.78,138.71,21.6516]
[1719333206240,0.17,138.77,138.71,21.6516]
[1719333208240,7.2075,138.75,138.68,16.169]
[1719333208413,20.0,138.74,138.68,16.169]
[1719333208611,0.17,138.73,138.68,16.169]
[1719333210109,27.2062,138.77,138.68,16.169]
[1719333210428,7.2078,138.74,138.68,16.169]
[1719333210609,20.0,138.73,138.68,16.169]
[1719333211217,20.17,138.74,138.68,16.169]
[1719333211419,20.0,138.73,138.68,16.169]
[1719333211618,0.17,138.74,138.68,16.169]
[1719333211824,0.17,138.75,138.68,16.169]
[1719333212129,7.3773,138.75,138.68,16.169]
[1719333212331,20.0,138.74,138.68,16.169]
[1719333212717,0.17,138.73,138.68,16.169]
[1719333213435,20.0,138.74,138.68,16.169]
[1719333213725,27.3773,138.75,138.68,16.169]
[1719333214544,20.17,138.75,138.68,16.169]
[1719333214848,0.17,138.75,138.68,16.169]
[1719333215007,7.3772,138.75,138.68,16.169]
[1719333215207,20.0,138.74,138.68,16.169]
[1719333215622,27.50873948,138.74,138.68,16.169]
[1719333216515,34.71643948,138.74,138.68,16.169]
[1719333216833,0.17,138.73,138.68,16.169]
[1719333218735,7.87,138.73,138.68,24.039]
[1719333218935,7.87,138.73,138.68,24.54355121]
[1719333219841,7.87,138.73,138.68,24.039]
[1719333220118,7.87,138.72,138.68,16.169]
[1719333220315,7.87,138.71,138.68,16.169]
[1719333222241,7.87,138.72,138.68,16.169]
[1719333223540,7.87,138.73,138.68,16.169]
[1719333223927,0.17,138.72,138.68,16.169]
[1719333224245,7.87,138.73,138.68,24.5647568]
[1719333224622,7.87,138.73,138.68,24.039]
[1719333225343,7.87,138.73,138.68,16.169]
[1719333226247,7.87,138.73,138.68,16.69449141]
[1719333227045,27.67873948,138.74,138.68,16.69449141]
[1719333227239,7.87,138.73,138.68,16.69449141]
[1719333228447,35.54873948,138.74,138.69,7.87]
[1719333228648,27.67873948,138.74,138.69,7.87]
[1719333228844,27.50873948,138.74,138.69,7.87]
[1719333230728,35.37873948,138.74,138.69,7.87]
[1719333230944,27.50873948,138.74,138.69,7.87]
[1719333231652,35.37873948,138.74,138.69,7.87]
[1719333231830,7.87,138.73,138.68,24.56449141]
[1719333232551,27.50873948,138.74,138.69,7.87]
[1719333233456,35.37873948,138.74,138.69,8.39545351]
[1719333237059,42.58643948,138.74,138.69,8.39545351]
[1719333239162,7.87,138.73,138.69,0.52545351]
[1719333239368,15.0783,138.73,138.68,24.039]
[1719333239568,7.87,138.71,138.68,16.169]
[1719333239944,15.37949364,138.71,138.68,16.169]
[1719333240761,7.2084,138.73,138.68,16.169]
[1719333240962,27.87,138.72,138.68,16.169]
[1719333241354,7.87,138.71,138.68,16.169]
[1719333242076,7.87,138.7,138.68,16.169]
[1719333242249,7.87,138.7,138.6,32.3338248]
[1719333242250,7.87,138.69,138.63,14.3284]
[1719333243354,7.87,138.69,138.64,7.87]
[1719333243970,7.87,138.7,138.65,7.87]
[1719333244165,20.0,138.72,138.66,15.2417]
[1719333244367,20.0,138.72,138.68,7.87]
[1719333244764,20.0,138.72,138.67,7.87]
[1719333244976,20.0,138.72,138.66,15.2417]
[1719333245161,7.87,138.71,138.66,15.2417]
[1719333245956,7.87,138.71,138.66,23.1117]
[1719333246764,7.87,138.71,138.66,15.2417]
[1719333247070,7.87,138.7,138.66,15.2417]
[1719333248969,7.87,138.71,138.66,23.1117]
[1719333249560,20.17,138.72,138.66,23.1117]
[1719333249755,7.87,138.71,138.66,23.1117]
[1719333250175,28.04,138.72,138.67,7.87]
[1719333250347,0.17,138.71,138.67,7.87]
[1719333253176,8.04,138.71,138.66,23.1117]
[1719333253661,8.04,138.71,138.66,15.2417]
[1719333253976,7.87,138.69,138.66,15.2417]
[1719333254967,7.87,138.68,138.63,22.6906]
[1719333255157,7.87,138.67,138.63,22.6906]
[1719333256670,7.87,138.67,138.63,16.2322]
[1719333256870,0.17,138.66,138.63,16.2322]
[1719333258089,7.87,138.64,138.6,7.0816248]
[1719333258790,7.87,138.64,138.6,0.8538248]
[1719333258987,0.17,138.63,138.6,0.8538248]
[1719333259587,8.04,138.63,138.6,0.8538248]
[1719333260291,0.17,138.63,138.6,0.8538248]
[1719333260965,20.0,138.66,138.6,8.0684248]
[1719333261168,20.0,138.66,138.6,0.8538248]
[1719333261367,0.17,138.65,138.6,8.0687248]
[1719333262089,7.87,138.62,138.6,0.8538248]
[1719333262599,0.17,138.65,138.6,0.8538248]
[1719333262600,7.87,138.63,138.6,0.8538248]
[1719333262978,0.17,138.62,138.6,0.8538248]
[1719333263579,7.87,138.63,138.6,0.8538248]
[1719333265117,15.53658742,138.64,138.6,0.8538248]
[1719333266412,7.87,138.63,138.6,0.8538248]
[1719333266995,6.66518083,138.71,138.65,7.212]
[1719333267203,7.87,138.69,138.65,7.2123]
[1719333267403,7.87,138.69,138.64,15.0827]
[1719333267714,7.49154462,138.7,138.64,15.0827]
[1719333267891,7.87,138.68,138.61,6.98377116]
[1719333268209,7.87,138.67,138.62,7.2138]
[1719333268421,7.87,138.66,138.62,7.2138]
[1719333268714,7.87,138.66,138.63,7.2133]
[1719333268919,14.51092902,138.7,138.63,7.87]
[1719333269125,7.87,138.68,138.63,7.87]
[1719333269500,7.87,138.68,138.62,7.87]
[1719333269898,7.87,138.67,138.62,7.87]
[1719333270308,7.87,138.67,138.61,6.4577]
[1719333270599,0.17,138.66,138.63,7.213]
[1719333270800,7.87,138.67,138.63,7.213]
[1719333271321,7.87,138.67,138.62,7.2139]
[1719333271494,8.04,138.66,138.62,7.2139]
[1719333271700,8.04,138.66,138.61,13.672]
[1719333272017,8.04,138.66,138.62,7.2139]
[1719333272195,8.04,138.66,138.63,7.2133]
[1719333272400,0.17,138.66,138.63,7.2133]
[1719333272921,14.51092902,138.7,138.62,7.87]
[1719333273098,14.51092902,138.7,138.61,6.4577]
[1719333273099,7.87,138.68,138.63,7.87]
[1719333273298,7.87,138.68,138.64,7.2125]
[1719333273710,7.87,138.68,138.62,7.87]
[1719333273896,7.87,138.68,138.64,7.2127]
[1719333274303,0.17,138.67,138.61,6.4577]
[1719333274607,8.04,138.67,138.62,7.87]
[1719333275123,8.04,138.67,138.63,7.2133]
[1719333275525,7.87,138.64,138.6,0.8538248]
[1719333275829,8.04,138.63,138.6,0.8538248]
[1719333276007,0.17,138.63,138.6,0.8538248]
[1719333277721,15.53350818,138.63,138.6,0.8538248]
[1719333278304,7.87,138.61,138.6,0.8538248]
[1719333278920,8.04,138.61,138.6,0.8538248]
[1719333279308,0.17,138.61,138.6,0.8538248]
[1719333279509,8.04,138.61,138.6,0.8538248]
[1719333281122,7.49350818,138.63,138.6,0.8538248]
[1719333281327,15.36350818,138.63,138.6,0.8538248]
[1719333281618,14.70710818,138.63,138.6,0.8538248]
[1719333281828,7.87,138.61,138.6,0.8538248]
[1719333282413,8.04,138.61,138.6,0.8538248]
[1719333282710,0.17,138.61,138.6,0.8538248]
[1719333283626,7.3844,138.61,138.6,0.8538248]
[1719333284329,122.3819,138.61,138.6,0.8538248]
[1719333284523,225.65412884,138.61,138.6,0.8538248]
[1719333285405,232.69197634,138.61,138.6,0.8538248]
[1719333288126,240.19040859,138.61,138.6,0.8538248]
[1719333288719,140.19040859,138.61,138.6,0.8538248]
[1719333289015,240.19040859,138.61,138.6,0.8538248]
[1719333290022,140.19040859,138.61,138.6,0.8538248]
[1719333290513,240.19040859,138.61,138.6,0.8538248]
[1719333294116,140.19040859,138.61,138.6,0.8538248]
[1719333296121,240.19040859,138.61,138.6,0.8538248]
[1719333296834,140.19040859,138.61,138.6,0.8538248]
[1719333297423,240.19040859,138.61,138.6,0.8538248]
[1719333300032,240.19040859,138.61,138.6,2.48e-05]
[1719333300033,283.55040859,138.61,138.6,2.48e-05]
[1719333300241,7.2179,138.55,138.5,0.04278287]
[1719333300424,23.66,138.56,138.5,0.04278287]
[1719333300623,7.2187,138.53,138.5,0.04278287]
[1719333300822,0.17,138.52,138.5,0.04278287]
[1719333301013,7.2184,138.54,138.5,0.04278287]
[1719333301219,0.17,138.53,138.5,0.04278287]
[1719333301741,7.2182,138.54,138.5,0.04278287]
[1719333301941,0.17,138.53,138.5,0.04278287]
[1719333302738,7.2186,138.53,138.5,0.04278287]
[1719333302948,7.3892,138.52,138.5,0.04278287]
[1719333303120,7.9,138.51,138.5,0.04278287]
[1719333303319,15.1196,138.51,138.5,0.04278287]
[1719333303518,15.2896,138.51,138.5,0.04278287]
[1719333303722,187.68742884,138.51,138.5,0.04278287]
[1719333304653,187.68742884,138.51,138.46,0.8538248]
[1719333304654,7.2217,138.47,138.46,0.8538248]
[1719333304821,34.78952884,138.47,138.46,0.8538248]
[1719333305016,79.78952884,138.47,138.46,0.8538248]
[1719333305918,7.0378475,138.51,138.47,7.2215]
[1719333306115,7.49934364,138.55,138.49,7.2206]
[1719333306336,7.49934364,138.55,138.46,0.8538248]
[1719333307243,7.49934364,138.55,138.48,15.9639]
[1719333307440,150.01682884,138.61,138.48,15.9639]
[1719333307632,6.65682884,138.6,138.49,7.2206]
[1719333307838,6.65682884,138.6,138.48,15.9639]
[1719333307839,7.216,138.58,138.5,7.2201]
[1719333308142,6.65682884,138.58,138.48,15.9639]
[1719333308346,6.65682884,138.57,138.48,15.9639]
[1719333309749,30.37682884,138.61,138.53,7.2185]
[1719333309942,7.2158,138.59,138.5,7.2199]
[1719333310122,20.17,138.58,138.48,15.9639]
[1719333310319,27.50029109,138.58,138.53,7.2185]
[1719333310519,7.50029109,138.58,138.56,7.217]
[1719333310723,6.65682884,138.63,138.57,16.2568]
[1719333310923,7.49838794,138.62,138.57,16.2568]
[1719333311238,7.49838794,138.62,138.57,23.4731]
[1719333311440,6.65682884,138.63,138.57,23.4731]
[1719333311656,6.65682884,138.63,138.61,7.2144]
[1719333311863,7.49604446,138.67,138.63,7.2134]
[1719333312029,33.86662884,138.7,138.64,15.692]
[1719333312231,6.65682884,138.7,138.64,15.692]
[1719333312425,6.65682884,138.7,138.65,7.2124]
[1719333312948,6.65682884,138.7,138.64,15.692]
[1719333313461,7.49354238,138.71,138.64,15.692]
[1719333313847,0.17,138.7,138.64,15.692]
[1719333314046,7.2104,138.69,138.64,15.692]
[1719333314241,30.37682884,138.7,138.62,6.3163]
[1719333314442,0.17,138.68,138.62,6.3163]
[1719333314635,30.37682884,138.7,138.62,6.3163]
[1719333314836,0.17,138.69,138.62,6.3163]
[1719333315038,0.17,138.69,138.63,7.2129]
[1719333315260,0.17,138.69,138.64,7.2129]
[1719333315657,20.0,138.7,138.64,7.2129]
[1719333315858,20.0,138.7,138.65,7.2124]
[1719333315859,0.17,138.69,138.65,7.2124]
[1719333316068,7.49354238,138.71,138.62,6.3163]
[1719333316842,30.9273,138.75,138.63,16.0]
[1719333316843,7.2073,138.75,138.63,16.0]
[1719333317057,27.49235038,138.74,138.63,16.0]
[1719333317257,7.49235038,138.74,138.63,16.0]
[1719333318265,7.49235038,138.74,138.65,6.6239]
[1719333320060,0.17,138.73,138.65,6.6239]
[1719333320250,7.2093,138.71,138.65,6.6239]
[1719333320651,0.17,138.7,138.65,6.6239]
[1719333321665,20.0,138.73,138.65,6.6239]
[1719333321865,0.17,138.72,138.65,6.6239]
[1719333322060,7.49235038,138.74,138.66,16.3088]
[1719333322273,0.17,138.73,138.66,16.3088]
[1719333322653,7.49235038,138.74,138.66,16.3088]
[1719333322864,23.72,138.72,138.62,21.5959]
[1719333323065,23.72,138.72,138.5,25.0]
[1719333323066,100.0,138.72,138.59,15.5745]
[1719333323247,7.2128,138.65,138.59,15.5745]
[1719333323565,41.7472,138.68,138.59,15.5745]
[1719333323748,100.0,138.67,138.59,15.5745]
[1719333324070,7.2145,138.61,138.56,16.6493]
[1719333324373,0.17,138.6,138.56,16.6493]
[1719333324703,20.0,138.61,138.53,6.4781]
[1719333324875,7.2155,138.59,138.53,6.4781]
[1719333325179,7.215,138.6,138.53,6.4781]
[1719333325364,20.17,138.59,138.53,6.4781]
[1719333325951,0.17,138.59,138.53,6.4781]
[1719333326569,100.0,138.65,138.53,6.4781]
[1719333326874,255.2,138.67,138.63,7.2129]
[1719333327170,115.6458,138.72,138.6,7.2146]
[1719333327171,7.2099,138.7,138.6,7.2146]
[1719333327475,7.97190775,138.69,138.54,15.551]
[1719333327677,7.49253314,138.73,138.58,6.0253]
[1719333327872,7.49253314,138.73,138.6,50.1295]
[1719333328051,7.97190775,138.76,138.62,21.69]
[1719333328375,7.97190775,138.76,138.64,21.69]
[1719333328571,7.48457406,138.78,138.65,0.17]
[1719333328778,7.97190775,138.77,138.65,0.17]
[1719333328962,7.97190775,138.77,138.65,0.34]
[1719333329285,100.0,138.78,138.6,22.5195]
[1719333329491,100.0,138.72,138.6,22.5195]
[1719333329659,7.97190775,138.71,138.6,22.5195]
[1719333329859,0.17,138.7,138.6,22.5195]
[1719333330074,7.2108,138.68,138.6,22.5195]
[1719333330392,27.3818,138.67,138.6,22.5195]
[1719333330552,120.17,138.67,138.52,22.2076]
[1719333330751,45.0,138.66,138.52,22.2076]
[1719333331282,52.2123,138.66,138.52,22.2076]
[1719333331480,0.17,138.65,138.52,22.2076]
[1719333331681,20.17,138.65,138.52,22.2076]
[1719333331982,7.214,138.62,138.54,7.2177]
[1719333332154,7.214,138.62,138.52,22.2076]
[1719333332155,20.0,138.61,138.52,22.2076]
[1719333332355,0.17,138.6,138.52,29.4266]
[1719333332559,0.17,138.6,138.52,22.2076]
[1719333332777,45.17,138.6,138.52,22.2076]
[1719333332977,0.17,138.6,138.52,22.2076]
[1719333333157,7.3855,138.6,138.52,22.2076]
[1719333333483,7.2157,138.59,138.52,22.2076]
[1719333333687,7.2167,138.57,138.49,7.2205]
[1719333333883,0.17,138.56,138.48,7.2212]
[1719333334101,0.17,138.56,138.47,6.0511]
[1719333334385,0.17,138.56,138.51,7.2196]
[1719333334566,7.216,138.59,138.51,7.2196]
[1719333334758,0.17,138.58,138.51,7.2196]
[1719333334965,7.3861,138.58,138.5,7.2201]
[1719333335154,7.3861,138.58,138.47,6.0511]
[1719333335155,7.2167,138.57,138.49,7.2207]
[1719333335356,7.3872,138.56,138.48,7.2212]
[1719333335560,7.2172,138.56,138.48,7.2212]
[1719333335772,0.17,138.55,138.48,7.2212]
[1719333336373,7.3876,138.55,138.48,7.2212]
[1719333336686,0.17,138.55,138.48,7.2212]
[1719333337092,0.17,138.55,138.49,7.2206]
[1719333337386,0.17,138.55,138.48,7.2211]
[1719333337594,7.3876,138.55,138.48,7.2211]
[1719333337890,0.17,138.55,138.47,6.0511]
[1719333338091,20.0,138.58,138.51,7.2196]
[1719333338388,7.217,138.57,138.49,7.2206]
[1719333338605,20.0,138.56,138.49,7.2206]
[1719333338768,20.0,138.56,138.51,7.2193]
[1719333339160,7.97190775,138.6,138.47,6.0511]
[1719333339391,20.0,138.59,138.48,0.17]
[1719333339582,27.215,138.6,138.53,7.2185]
[1719333339972,7.49162886,138.59,138.53,7.2185]
[1719333340172,7.49162886,138.59,138.52,7.2187]
[1719333340561,0.17,138.58,138.51,7.2195]
[1719333340762,0.17,138.58,138.52,7.219]
[1719333340988,0.17,138.58,138.47,6.0511]
[1719333341499,7.2171,138.56,138.48,7.2208]
[1719333341666,7.2171,138.56,138.47,6.0511]
[1719333341869,0.17,138.55,138.47,6.0511]
[1719333342291,7.2162,138.58,138.5,7.2198]
[1719333342464,20.0,138.57,138.5,7.2198]
[1719333342868,0.17,138.56,138.5,7.2198]
[1719333343499,15.46353661,138.59,138.47,6.0511]
[1719333343803,7.49162886,138.59,138.53,7.2182]
[1719333344091,7.49162886,138.59,138.47,6.0511]
[1719333344467,7.49162886,138.59,138.51,7.2195]
[1719333344767,15.46353661,138.59,138.47,6.0511]
[1719333345079,20.0,138.58,138.47,6.0511]
[1719333345268,0.17,138.57,138.47,6.0511]
[1719333345467,7.49162886,138.59,138.54,7.2177]
[1719333345963,7.97190775,138.63,138.57,7.2162]
[1719333346179,7.97190775,138.69,138.57,22.136]
[1719333346380,7.2091,138.72,138.64,7.2127]
[1719333346582,7.2091,138.72,138.58,41.86]
[1719333346583,7.48836909,138.72,138.58,41.86]
[1719333346793,7.48836909,138.72,138.59,0.17]
[1719333347167,14.69716909,138.72,138.59,0.17]
[1719333347566,7.2094,138.71,138.58,20.17]
[1719333347786,7.48836909,138.72,138.58,0.17]
[1719333347787,7.2107,138.69,138.58,0.17]
[1719333348092,7.2108,138.68,138.57,22.136]
[1719333348270,7.2103,138.69,138.57,22.136]
[1719333348580,7.2117,138.67,138.57,22.136]
[1719333348775,7.2108,138.69,138.57,22.136]
[1719333348968,118.0238,138.71,138.57,22.136]
[1719333348969,27.2108,138.68,138.57,22.136]
[1719333349174,0.17,138.67,138.57,22.136]
[1719333349383,0.17,138.67,138.58,1.44262722]
[1719333349695,7.2119,138.66,138.58,1.44262722]
[1719333349877,0.17,138.65,138.58,1.44262722]
[1719333350578,20.0,138.66,138.58,1.44262722]
[1719333350893,0.17,138.65,138.58,1.44262722]
[1719333351097,20.0,138.67,138.58,1.44262722]
[1719333351395,20.0,138.68,138.58,1.44262722]
[1719333352079,7.2133,138.64,138.57,22.136]
[1719333352283,38.0276,138.68,138.57,22.136]